[Event "Early-Titled-Tuesday-Blitz-February-06-2024"]
[Site "Chess.com"]
[Date "2024.02.06"]
[Round "4"]
[White "NoHeThTo"]
[Black "SmirnovTimofey2000"]
[Result "1-0"]
[WhiteElo "2619"]
[BlackElo "1980"]
[TimeControl "180+1"]
[EndTime "8:40:05 PST"]
[Termination "NoHeThTo won on time"]

1. d4 {[%clk 0:03:00.9]} 1... d5 {[%clk 0:02:59.8]} 2. Nc3 {[%clk 0:03:00.9]}
2... Nf6 {[%clk 0:02:59.5]} 3. Bf4 {[%clk 0:03:00.1]} 3... a6 {[%clk 0:02:59.5]}
4. e3 {[%clk 0:02:58]} 4... e6 {[%clk 0:02:59.4]} 5. g4 {[%clk 0:02:57.8]} 5...
h6 {[%clk 0:02:55.9]} 6. Qf3 {[%clk 0:02:52.4]} 6... Bd6 {[%clk 0:02:55.2]} 7.
Nge2 {[%clk 0:02:07.2]} 7... c5 {[%clk 0:02:44.7]} 8. dxc5 {[%clk 0:02:05]} 8...
Bxc5 {[%clk 0:02:44.7]} 9. O-O-O {[%clk 0:01:54.7]} 9... Bd6 {[%clk 0:02:36.7]}
10. g5 {[%clk 0:01:54.7]} 10... hxg5 {[%clk 0:02:36]} 11. Bxg5 {[%clk
0:01:54.7]} 11... Be7 {[%clk 0:02:35.7]} 12. h4 {[%clk 0:01:54.3]} 12... Bd7
{[%clk 0:02:27.3]} 13. Nf4 {[%clk 0:01:37.5]} 13... Nc6 {[%clk 0:02:25.3]} 14.
Bg2 {[%clk 0:01:32.7]} 14... Ne5 {[%clk 0:02:18]} 15. Qe2 {[%clk 0:01:31.8]}
15... Rc8 {[%clk 0:02:03.3]} 16. e4 {[%clk 0:01:31.6]} 16... Nxe4 {[%clk
0:01:57.3]} 17. Nxe4 {[%clk 0:01:25.8]} 17... Bxg5 {[%clk 0:01:46.4]} 18. Nxg5
{[%clk 0:01:25.2]} 18... Qc7 {[%clk 0:01:33.3]} 19. Rhe1 {[%clk 0:01:17.1]}
19... Rxh4 {[%clk 0:01:26.4]} 20. Nxd5 {[%clk 0:01:13.3]} 20... exd5 {[%clk
0:01:07.4]} 21. Qxe5+ {[%clk 0:01:11.7]} 21... Qxe5 {[%clk 0:01:08.3]} 22. Rxe5+
{[%clk 0:01:11.7]} 22... Kf8 {[%clk 0:01:08.6]} 23. Nf3 {[%clk 0:00:47]} 23...
Rhc4 {[%clk 0:01:03.6]} 24. c3 {[%clk 0:00:44.1]} 24... Bg4 {[%clk 0:00:56]} 25.
Rd4 {[%clk 0:00:42]} 25... Bxf3 {[%clk 0:00:51.4]} 26. Rxc4 {[%clk 0:00:41.6]}
26... dxc4 {[%clk 0:00:41.9]} 27. Bxf3 {[%clk 0:00:41.7]} 27... Rc7 {[%clk
0:00:40.7]} 28. Re4 {[%clk 0:00:39.4]} 28... b5 {[%clk 0:00:40.1]} 29. Rd4
{[%clk 0:00:39.5]} 29... g6 {[%clk 0:00:38.8]} 30. a4 {[%clk 0:00:39]} 30...
bxa4 {[%clk 0:00:37.1]} 31. Be2 {[%clk 0:00:38]} 31... a3 {[%clk 0:00:32.7]} 32.
bxa3 {[%clk 0:00:36.3]} 32... Re7 {[%clk 0:00:27.2]} 33. Bxc4 {[%clk 0:00:35.7]}
33... Re1+ {[%clk 0:00:26.8]} 34. Kb2 {[%clk 0:00:34.9]} 34... a5 {[%clk
0:00:21.3]} 35. Rd5 {[%clk 0:00:34.6]} 35... Rh1 {[%clk 0:00:18.2]} 36. Rd7
{[%clk 0:00:32.6]} 36... f5 {[%clk 0:00:16.9]} 37. Rf7+ {[%clk 0:00:31.4]} 37...
Ke8 {[%clk 0:00:17.2]} 38. Rg7 {[%clk 0:00:30.9]} 38... Rg1 {[%clk 0:00:15.1]}
39. Bf7+ {[%clk 0:00:29.8]} 39... Kf8 {[%clk 0:00:13.5]} 40. Rxg6 {[%clk
0:00:29.8]} 40... Rf1 {[%clk 0:00:09.4]} 41. Bc4 {[%clk 0:00:29.6]} 41... Rxf2+
{[%clk 0:00:09]} 42. Kb3 {[%clk 0:00:30.3]} 42... f4 {[%clk 0:00:06]} 43. Rf6+
{[%clk 0:00:29.2]} 43... Ke7 {[%clk 0:00:06.1]} 44. Rf5 {[%clk 0:00:25.4]} 44...
Kd6 {[%clk 0:00:05.9]} 45. Rxa5 {[%clk 0:00:24.4]} 45... f3 {[%clk 0:00:05]} 46.
Rf5 {[%clk 0:00:23.8]} 46... Ke7 {[%clk 0:00:02.4]} 47. a4 {[%clk 0:00:23.9]}
47... Kd6 {[%clk 0:00:01.5]} 48. a5 {[%clk 0:00:24.2]} 48... Kc6 {[%clk
0:00:01.7]} 49. a6 {[%clk 0:00:22]} 49... Kb6 {[%clk 0:00:01.9]} 50. Rf6+ {[%clk
0:00:19.9]} 50... Ka7 {[%clk 0:00:01.8]} 51. Rf7+ {[%clk 0:00:20.2]} 51... Kb6
{[%clk 0:00:02.2]} 52. a7 {[%clk 0:00:20.7]} 1-0

[Event "Early-Titled-Tuesday-Blitz-February-06-2024"]
[Site "Chess.com"]
[Date "2024.02.06"]
[Round "4"]
[White "MaxLeto"]
[Black "AndresDelgado77"]
[Result "0-1"]
[WhiteElo "2492"]
[BlackElo "2359"]
[TimeControl "180+1"]
[EndTime "8:40:06 PST"]
[Termination "AndresDelgado77 won on time"]

1. g4 {[%clk 0:03:00.9]} 1... d5 {[%clk 0:02:43.6]} 2. Bg2 {[%clk 0:03:01.1]}
2... c6 {[%clk 0:02:43.5]} 3. h3 {[%clk 0:03:00.7]} 3... e5 {[%clk 0:02:37.6]}
4. d4 {[%clk 0:03:01]} 4... e4 {[%clk 0:02:36]} 5. c3 {[%clk 0:03:01.3]} 5...
Bd6 {[%clk 0:02:33.3]} 6. c4 {[%clk 0:02:50.9]} 6... h5 {[%clk 0:02:28.5]} 7. g5
{[%clk 0:02:50.4]} 7... Ne7 {[%clk 0:02:25.8]} 8. Nc3 {[%clk 0:02:50.1]} 8...
Be6 {[%clk 0:02:22]} 9. Qb3 {[%clk 0:02:47.8]} 9... Qb6 {[%clk 0:02:11.3]} 10.
c5 {[%clk 0:02:40.5]} 10... Qxb3 {[%clk 0:02:07.2]} 11. axb3 {[%clk 0:02:41.4]}
11... Bc7 {[%clk 0:02:06.8]} 12. b4 {[%clk 0:02:41.9]} 12... Nd7 {[%clk
0:02:00.9]} 13. h4 {[%clk 0:02:32]} 13... Nf5 {[%clk 0:01:50.2]} 14. Be3 {[%clk
0:02:24.5]} 14... Nxe3 {[%clk 0:01:31.3]} 15. fxe3 {[%clk 0:02:25.4]} 15... Nf8
{[%clk 0:01:24.3]} 16. Kf2 {[%clk 0:02:03.4]} 16... Ng6 {[%clk 0:01:23.6]} 17.
Bh3 {[%clk 0:02:01]} 17... O-O {[%clk 0:01:14.4]} 18. b5 {[%clk 0:01:46.5]}
18... a6 {[%clk 0:00:50.5]} 19. b6 {[%clk 0:01:39.4]} 19... Bd8 {[%clk
0:00:48.1]} 20. Kg3 {[%clk 0:01:32.8]} 20... Be7 {[%clk 0:00:41.3]} 21. Rf1
{[%clk 0:01:24.2]} 21... Rae8 {[%clk 0:00:38.7]} 22. Bf5 {[%clk 0:01:18.9]}
22... Bxf5 {[%clk 0:00:35.9]} 23. Rxf5 {[%clk 0:01:19.8]} 23... f6 {[%clk
0:00:32.2]} 24. Nh3 {[%clk 0:01:14]} 24... Nxh4 {[%clk 0:00:23.6]} 25. Kxh4
{[%clk 0:00:50]} 25... fxg5+ {[%clk 0:00:23.3]} 26. Rxg5 {[%clk 0:00:50.7]}
26... g6 {[%clk 0:00:20.8]} 27. Kg3 {[%clk 0:00:31.8]} 27... Bxg5 {[%clk
0:00:19.3]} 28. Nxg5 {[%clk 0:00:32.7]} 28... Rf5 {[%clk 0:00:18.7]} 29. Nh3
{[%clk 0:00:33.2]} 29... g5 {[%clk 0:00:17.2]} 30. Nb1 {[%clk 0:00:23.2]} 30...
Kg7 {[%clk 0:00:15.3]} 31. Nd2 {[%clk 0:00:22.8]} 31... Kg6 {[%clk 0:00:15]} 32.
Rf1 {[%clk 0:00:20.6]} 32... Rxf1 {[%clk 0:00:13.8]} 33. Nxf1 {[%clk 0:00:21.5]}
33... Rf8 {[%clk 0:00:12.5]} 34. Nd2 {[%clk 0:00:21.3]} 34... Rf7 {[%clk
0:00:12.4]} 35. Kg2 {[%clk 0:00:20]} 35... Kf5 {[%clk 0:00:11.4]} 36. Nf1 {[%clk
0:00:17.6]} 36... Kg4 {[%clk 0:00:10.2]} 37. Ng3 {[%clk 0:00:11.8]} 37... h4
{[%clk 0:00:08.3]} 38. Nf1 {[%clk 0:00:08.5]} 38... Rxf1 {[%clk 0:00:07.8]} 39.
Nxg5 {[%clk 0:00:03.5]} 39... Kxg5 {[%clk 0:00:07.1]} 40. Kxf1 {[%clk
0:00:03.6]} 40... Kg4 {[%clk 0:00:07.7]} 41. Kg2 {[%clk 0:00:03.9]} 41... h3+
{[%clk 0:00:07.5]} 42. Kh2 {[%clk 0:00:04.3]} 42... Kh4 {[%clk 0:00:08]} 43. b4
{[%clk 0:00:01.6]} 43... Kg4 {[%clk 0:00:08]} 44. Kh1 {[%clk 0:00:01.6]} 44...
Kg3 {[%clk 0:00:07.9]} 45. Kg1 {[%clk 0:00:02.2]} 45... h2+ {[%clk 0:00:07.9]}
46. Kh1 {[%clk 0:00:02.8]} 46... Kf2 {[%clk 0:00:08.4]} 47. Kxh2 {[%clk
0:00:03.2]} 47... Kxe2 {[%clk 0:00:08.8]} 48. b5 {[%clk 0:00:04]} 48... axb5
{[%clk 0:00:08.7]} 0-1

[Event "Early-Titled-Tuesday-Blitz-February-06-2024"]
[Site "Chess.com"]
[Date "2024.02.06"]
[Round "4"]
[White "mary-sanna"]
[Black "NovakRatko"]
[Result "0-1"]
[WhiteElo "2188"]
[BlackElo "2417"]
[TimeControl "180+1"]
[EndTime "8:40:07 PST"]
[Termination "NovakRatko won by resignation"]

1. d4 {[%clk 0:03:00.8]} 1... d5 {[%clk 0:02:59.5]} 2. c4 {[%clk 0:03:00.8]}
2... c5 {[%clk 0:03:00]} 3. dxc5 {[%clk 0:02:58]} 3... d4 {[%clk 0:02:59.9]} 4.
Nf3 {[%clk 0:02:57.8]} 4... Nc6 {[%clk 0:02:59.9]} 5. e3 {[%clk 0:02:54.4]} 5...
e5 {[%clk 0:02:59.3]} 6. exd4 {[%clk 0:02:52.1]} 6... exd4 {[%clk 0:03:00.2]} 7.
Bd3 {[%clk 0:02:43.9]} 7... Qe7+ {[%clk 0:02:58.4]} 8. Qe2 {[%clk 0:02:33.1]}
8... Nf6 {[%clk 0:02:55.3]} 9. Bf4 {[%clk 0:02:20.8]} 9... Qxe2+ {[%clk
0:02:52.4]} 10. Kxe2 {[%clk 0:02:19.7]} 10... Bxc5 {[%clk 0:02:52.3]} 11. Re1
{[%clk 0:02:19]} 11... O-O {[%clk 0:02:49.6]} 12. Nbd2 {[%clk 0:02:19]} 12...
Nb4 {[%clk 0:02:48.2]} 13. Bb1 {[%clk 0:02:12.8]} 13... d3+ {[%clk 0:02:34.9]}
14. Kf1 {[%clk 0:02:12.1]} 14... Ng4 {[%clk 0:02:34.3]} 15. Ne4 {[%clk
0:02:10.8]} 15... Be7 {[%clk 0:02:14.3]} 16. h3 {[%clk 0:02:02.7]} 16... Nf6
{[%clk 0:01:47.6]} 17. Nxf6+ {[%clk 0:02:01.8]} 17... Bxf6 {[%clk 0:01:47.5]}
18. Bd6 {[%clk 0:02:00.6]} 18... Bxb2 {[%clk 0:01:18.9]} 19. Bxf8 {[%clk
0:01:59.1]} 19... Kxf8 {[%clk 0:01:18.4]} 20. a3 {[%clk 0:01:53.7]} 20... Nc2
{[%clk 0:01:17.8]} 21. Bxc2 {[%clk 0:01:45.3]} 21... dxc2 {[%clk 0:01:16.3]} 22.
Rac1 {[%clk 0:01:27.8]} 22... Bxc1 {[%clk 0:01:02.3]} 23. Rxc1 {[%clk
0:01:28.7]} 23... Bf5 {[%clk 0:01:02.6]} 24. Ke1 {[%clk 0:01:20.5]} 24... Rd8
{[%clk 0:01:00.4]} 25. c5 {[%clk 0:01:14.5]} 25... h5 {[%clk 0:00:55.7]} 26. Ke2
{[%clk 0:01:09]} 26... Rd5 {[%clk 0:00:55.3]} 27. Ne1 {[%clk 0:01:02.8]} 27...
Rxc5 {[%clk 0:00:54.8]} 28. Kd2 {[%clk 0:01:02.2]} 28... Ke7 {[%clk 0:00:53.4]}
29. f3 {[%clk 0:00:51.4]} 29... Kd6 {[%clk 0:00:50.1]} 30. g4 {[%clk 0:00:51.6]}
30... hxg4 {[%clk 0:00:50.6]} 31. hxg4 {[%clk 0:00:52.5]} 31... Bg6 {[%clk
0:00:50.4]} 32. f4 {[%clk 0:00:50.4]} 32... Be4 {[%clk 0:00:49.8]} 33. Ke3
{[%clk 0:00:49.3]} 33... f5 {[%clk 0:00:49.2]} 34. g5 {[%clk 0:00:41.5]} 34...
Rc3+ {[%clk 0:00:48.7]} 35. Kd4 {[%clk 0:00:30.7]} 35... Rxa3 {[%clk 0:00:43.7]}
36. Nxc2 {[%clk 0:00:29.9]} 36... Bxc2 {[%clk 0:00:38.6]} 37. Rxc2 {[%clk
0:00:30.8]} 37... Rf3 {[%clk 0:00:39.1]} 38. Rd2 {[%clk 0:00:21.8]} 38... b5
{[%clk 0:00:32.7]} 39. Rd1 {[%clk 0:00:20.5]} 39... a5 {[%clk 0:00:32.4]} 40.
Rd2 {[%clk 0:00:18.4]} 40... a4 {[%clk 0:00:32]} 41. Rd1 {[%clk 0:00:18.6]}
41... a3 {[%clk 0:00:32.2]} 42. Rd2 {[%clk 0:00:19]} 42... b4 {[%clk 0:00:32.3]}
43. Kc4+ {[%clk 0:00:19.1]} 43... Ke6 {[%clk 0:00:28.5]} 44. Kxb4 {[%clk
0:00:17.3]} 44... Rxf4+ {[%clk 0:00:26.9]} 45. Kxa3 {[%clk 0:00:17.1]} 45... Rg4
{[%clk 0:00:25.2]} 46. Re2+ {[%clk 0:00:16.7]} 46... Kf7 {[%clk 0:00:24.8]} 47.
Kb3 {[%clk 0:00:14.3]} 47... Rxg5 {[%clk 0:00:23]} 48. Kc4 {[%clk 0:00:14.9]}
48... Kf6 {[%clk 0:00:20.9]} 49. Kd5 {[%clk 0:00:14.8]} 49... Rg1 {[%clk
0:00:19.5]} 50. Re6+ {[%clk 0:00:13.4]} 50... Kg5 {[%clk 0:00:19.6]} 51. Re7
{[%clk 0:00:13.5]} 51... Rd1+ {[%clk 0:00:19.6]} 52. Kc4 {[%clk 0:00:13.8]}
52... g6 {[%clk 0:00:19.4]} 53. Kc3 {[%clk 0:00:13.7]} 53... f4 {[%clk
0:00:19.5]} 54. Kc2 {[%clk 0:00:14.1]} 54... Rd6 {[%clk 0:00:19.9]} 55. Re8
{[%clk 0:00:12.3]} 55... Kg4 {[%clk 0:00:20.1]} 56. Rg8 {[%clk 0:00:11.9]} 56...
f3 {[%clk 0:00:20.4]} 0-1

[Event "Early-Titled-Tuesday-Blitz-February-06-2024"]
[Site "Chess.com"]
[Date "2024.02.06"]
[Round "4"]
[White "AlmasRakhmatullaev"]
[Black "Martial2008"]
[Result "1-0"]
[WhiteElo "2901"]
[BlackElo "2683"]
[TimeControl "180+1"]
[EndTime "8:40:08 PST"]
[Termination "AlmasRakhmatullaev won by resignation"]

1. e4 {[%clk 0:02:41.6]} 1... e5 {[%clk 0:02:57.1]} 2. Nf3 {[%clk 0:02:41.4]}
2... Nc6 {[%clk 0:02:55.8]} 3. Bc4 {[%clk 0:02:42]} 3... Nf6 {[%clk 0:02:55.1]}
4. Ng5 {[%clk 0:02:42]} 4... d5 {[%clk 0:02:54.8]} 5. exd5 {[%clk 0:02:42.9]}
5... Na5 {[%clk 0:02:55.3]} 6. Bb5+ {[%clk 0:02:43.5]} 6... c6 {[%clk 0:02:56]}
7. dxc6 {[%clk 0:02:44.4]} 7... bxc6 {[%clk 0:02:56.5]} 8. Bd3 {[%clk 0:02:45]}
8... Nd5 {[%clk 0:02:54.9]} 9. Nf3 {[%clk 0:02:45]} 9... Bd6 {[%clk 0:02:55.1]}
10. O-O {[%clk 0:02:44.4]} 10... Nf4 {[%clk 0:02:55.6]} 11. Re1 {[%clk
0:02:44.4]} 11... Nxd3 {[%clk 0:02:54.5]} 12. cxd3 {[%clk 0:02:45.3]} 12... O-O
{[%clk 0:02:54.9]} 13. Nc3 {[%clk 0:02:45.5]} 13... Bf5 {[%clk 0:02:42.4]} 14.
Ne4 {[%clk 0:02:36]} 14... Nb7 {[%clk 0:02:40.8]} 15. Nxd6 {[%clk 0:02:30.3]}
15... Qxd6 {[%clk 0:02:39.9]} 16. Nxe5 {[%clk 0:02:30.3]} 16... Nc5 {[%clk
0:02:38.2]} 17. b3 {[%clk 0:02:22.8]} 17... Nxd3 {[%clk 0:02:35.9]} 18. Nxd3
{[%clk 0:02:22.5]} 18... Bxd3 {[%clk 0:02:36.4]} 19. Bb2 {[%clk 0:02:21.6]}
19... Rfe8 {[%clk 0:02:35.8]} 20. Re3 {[%clk 0:02:19.7]} 20... Rad8 {[%clk
0:02:28.1]} 21. Rc1 {[%clk 0:02:15.5]} 21... Bg6 {[%clk 0:02:23.5]} 22. Bc3
{[%clk 0:01:49.9]} 22... Rxe3 {[%clk 0:02:19.8]} 23. fxe3 {[%clk 0:01:50]} 23...
Be4 {[%clk 0:02:19.1]} 24. Qg4 {[%clk 0:01:48.4]} 24... Qg6 {[%clk 0:02:19.2]}
25. Qxg6 {[%clk 0:01:46.5]} 25... hxg6 {[%clk 0:02:20.1]} 26. Bd4 {[%clk
0:01:46.3]} 26... a6 {[%clk 0:02:17]} 27. Kf2 {[%clk 0:01:43.4]} 27... f6 {[%clk
0:02:16.5]} 28. h3 {[%clk 0:01:42.2]} 28... Kf7 {[%clk 0:02:14.6]} 29. Rc3
{[%clk 0:01:42.7]} 29... a5 {[%clk 0:02:10.6]} 30. d3 {[%clk 0:01:41.3]} 30...
Bd5 {[%clk 0:02:09.2]} 31. Bb6 {[%clk 0:01:35.3]} 31... Ra8 {[%clk 0:02:07.2]}
32. e4 {[%clk 0:01:34.4]} 32... Be6 {[%clk 0:02:06.8]} 33. a3 {[%clk 0:01:12.4]}
33... Ra6 {[%clk 0:01:57.7]} 34. Rxc6 {[%clk 0:01:00.6]} 34... Bd7 {[%clk
0:01:55.3]} 35. Rc7 {[%clk 0:00:47.6]} 35... Rxb6 {[%clk 0:01:55.4]} 36. Rxd7+
{[%clk 0:00:48]} 36... Ke6 {[%clk 0:01:55.8]} 37. Rxg7 {[%clk 0:00:35.5]} 37...
Rxb3 {[%clk 0:01:48.2]} 38. Rxg6 {[%clk 0:00:35.6]} 38... Rxd3 {[%clk
0:01:48.3]} 39. Rg3 {[%clk 0:00:35.5]} 39... Rd4 {[%clk 0:01:45.8]} 40. Re3
{[%clk 0:00:35.4]} 40... Ke5 {[%clk 0:01:46]} 41. Kf3 {[%clk 0:00:35.8]} 41...
Rd1 {[%clk 0:01:45.5]} 42. Rb3 {[%clk 0:00:35.3]} 42... Rf1+ {[%clk 0:01:45.6]}
43. Ke2 {[%clk 0:00:35.7]} 43... Ra1 {[%clk 0:01:43.1]} 44. Rb5+ {[%clk
0:00:27.1]} 44... Kxe4 {[%clk 0:01:43.1]} 45. Rxa5 {[%clk 0:00:28]} 45... Ra2+
{[%clk 0:01:43.6]} 46. Kf1 {[%clk 0:00:28.4]} 46... f5 {[%clk 0:01:37.4]} 47.
Ra8 {[%clk 0:00:28.4]} 47... f4 {[%clk 0:01:34]} 48. a4 {[%clk 0:00:26.2]} 48...
f3 {[%clk 0:01:27.5]} 49. Re8+ {[%clk 0:00:24.7]} 49... Kd4 {[%clk 0:01:24.8]}
50. gxf3 {[%clk 0:00:24.4]} 50... Rh2 {[%clk 0:01:23.3]} 51. a5 {[%clk
0:00:20.5]} 51... Rxh3 {[%clk 0:01:22.2]} 52. Kf2 {[%clk 0:00:20.8]} 52... Rh5
{[%clk 0:01:22.4]} 53. a6 {[%clk 0:00:20.5]} 53... Ra5 {[%clk 0:01:22.3]} 54.
Re6 {[%clk 0:00:20.4]} 54... Kd5 {[%clk 0:01:22.4]} 55. Rg6 {[%clk 0:00:18.2]}
55... Ra3 {[%clk 0:01:23]} 56. Kg3 {[%clk 0:00:15.1]} 56... Ke5 {[%clk
0:01:23.4]} 57. Kg4 {[%clk 0:00:15.3]} 57... Ra1 {[%clk 0:01:22.2]} 58. f4+
{[%clk 0:00:15.1]} 58... Ke4 {[%clk 0:01:22.6]} 59. Re6+ {[%clk 0:00:15.3]}
59... Kd5 {[%clk 0:01:23.1]} 60. f5 {[%clk 0:00:12.6]} 60... Rg1+ {[%clk
0:01:23.2]} 61. Kf4 {[%clk 0:00:12.9]} 61... Rg7 {[%clk 0:01:23.9]} 62. Rg6
{[%clk 0:00:12]} 62... Ra7 {[%clk 0:01:21.7]} 63. Kg5 {[%clk 0:00:12.4]} 63...
Rh7 {[%clk 0:01:21.1]} 64. Rb6 {[%clk 0:00:09.9]} 64... Ke5 {[%clk 0:01:19.2]}
65. Rb5+ {[%clk 0:00:08.9]} 65... Kd6 {[%clk 0:01:18.5]} 66. Rb7 {[%clk
0:00:09.8]} 66... Rh1 {[%clk 0:01:17.7]} 67. f6 {[%clk 0:00:10.1]} 67... Ke6
{[%clk 0:01:14.1]} 68. Rb6+ {[%clk 0:00:10.1]} 68... Kf7 {[%clk 0:01:14.2]} 69.
Rb7+ {[%clk 0:00:10.8]} 69... Ke6 {[%clk 0:01:14.7]} 70. f7 {[%clk 0:00:09.9]}
70... Rf1 {[%clk 0:01:11.1]} 71. a7 {[%clk 0:00:09.7]} 71... Rg1+ {[%clk
0:01:11.3]} 72. Kh4 {[%clk 0:00:09.7]} 72... Rh1+ {[%clk 0:01:11.3]} 73. Kg3
{[%clk 0:00:10.2]} 73... Rh8 {[%clk 0:01:11.6]} 74. Rb8 {[%clk 0:00:09.8]} 1-0

[Event "Early-Titled-Tuesday-Blitz-February-06-2024"]
[Site "Chess.com"]
[Date "2024.02.06"]
[Round "4"]
[White "bilosuvenosu06"]
[Black "Chernyavsky_A"]
[Result "1-0"]
[WhiteElo "2598"]
[BlackElo "2387"]
[TimeControl "180+1"]
[EndTime "8:40:08 PST"]
[Termination "bilosuvenosu06 won on time"]

1. Nf3 {[%clk 0:01:40.9]} 1... Nf6 {[%clk 0:02:56.2]} 2. d4 {[%clk 0:01:41.2]}
2... g6 {[%clk 0:02:56.2]} 3. c4 {[%clk 0:01:41.8]} 3... Bg7 {[%clk 0:02:56.9]}
4. Nc3 {[%clk 0:01:42.6]} 4... O-O {[%clk 0:02:57.4]} 5. g3 {[%clk 0:01:43.3]}
5... d6 {[%clk 0:02:57]} 6. Bg2 {[%clk 0:01:43.6]} 6... Nc6 {[%clk 0:02:57.6]}
7. O-O {[%clk 0:01:44.4]} 7... a6 {[%clk 0:02:57.6]} 8. b3 {[%clk 0:01:44.3]}
8... Rb8 {[%clk 0:02:57.2]} 9. Bb2 {[%clk 0:01:44.7]} 9... b5 {[%clk 0:02:57.2]}
10. cxb5 {[%clk 0:01:44.8]} 10... axb5 {[%clk 0:02:58.1]} 11. Rc1 {[%clk
0:01:40.8]} 11... b4 {[%clk 0:02:55.3]} 12. Nb1 {[%clk 0:01:39.8]} 12... Na7
{[%clk 0:02:40.5]} 13. Nbd2 {[%clk 0:01:33.1]} 13... Nb5 {[%clk 0:02:35.2]} 14.
e4 {[%clk 0:01:25.5]} 14... Ra8 {[%clk 0:02:30.7]} 15. Qe2 {[%clk 0:01:12.9]}
15... Rxa2 {[%clk 0:02:24]} 16. Nc4 {[%clk 0:01:04.2]} 16... Nc3 {[%clk
0:02:22.2]} 17. Qd3 {[%clk 0:01:03.9]} 17... Ncxe4 {[%clk 0:02:11.5]} 18. Ra1
{[%clk 0:01:03.6]} 18... Rxa1 {[%clk 0:01:59.5]} 19. Rxa1 {[%clk 0:01:04.5]}
19... Bf5 {[%clk 0:01:54.5]} 20. Qe2 {[%clk 0:01:00.7]} 20... Nc3 {[%clk
0:01:42.8]} 21. Qe1 {[%clk 0:01:00.8]} 21... Nfd5 {[%clk 0:01:36]} 22. Ne3
{[%clk 0:00:58]} 22... Nxe3 {[%clk 0:01:32.4]} 23. Qxe3 {[%clk 0:00:58.9]} 23...
Nd5 {[%clk 0:01:29.1]} 24. Qe2 {[%clk 0:00:59.2]} 24... c6 {[%clk 0:01:21.4]}
25. h3 {[%clk 0:00:58.4]} 25... Qb6 {[%clk 0:01:18.7]} 26. Qc4 {[%clk
0:00:55.6]} 26... h6 {[%clk 0:01:04.5]} 27. Ra6 {[%clk 0:00:55.3]} 27... Qb5
{[%clk 0:00:58.6]} 28. Rxc6 {[%clk 0:00:52.1]} 28... Qxc4 {[%clk 0:00:53.8]} 29.
bxc4 {[%clk 0:00:53]} 29... Nc3 {[%clk 0:00:51.3]} 30. Rb6 {[%clk 0:00:41.3]}
30... Na4 {[%clk 0:00:31.1]} 31. Rxb4 {[%clk 0:00:40.6]} 31... Nxb2 {[%clk
0:00:31.5]} 32. Rxb2 {[%clk 0:00:41.5]} 32... Rc8 {[%clk 0:00:31.5]} 33. Rb4
{[%clk 0:00:35.6]} 33... Bd3 {[%clk 0:00:22.3]} 34. Bf1 {[%clk 0:00:35.6]} 34...
Be4 {[%clk 0:00:15]} 35. Nd2 {[%clk 0:00:35.8]} 35... Bf5 {[%clk 0:00:09.4]} 36.
Nb3 {[%clk 0:00:36.3]} 36... Bc2 {[%clk 0:00:07.8]} 37. Na1 {[%clk 0:00:31.2]}
37... Bd1 {[%clk 0:00:07.1]} 38. Rb1 {[%clk 0:00:30.3]} 38... Bf3 {[%clk
0:00:04.6]} 39. Nb3 {[%clk 0:00:29.7]} 39... Rb8 {[%clk 0:00:04.4]} 40. Bd3
{[%clk 0:00:27.9]} 40... Bc6 {[%clk 0:00:03.2]} 41. Na5 {[%clk 0:00:26.8]} 41...
Rxb1+ {[%clk 0:00:02.7]} 42. Bxb1 {[%clk 0:00:27.7]} 42... Ba4 {[%clk
0:00:02.6]} 43. d5 {[%clk 0:00:27.6]} 43... Bc3 {[%clk 0:00:01.9]} 44. Nc6
{[%clk 0:00:26.1]} 44... Kf8 {[%clk 0:00:01.2]} 45. Be4 {[%clk 0:00:25.5]} 45...
Ke8 {[%clk 0:00:01.3]} 46. Kf1 {[%clk 0:00:25.7]} 46... Bb3 {[%clk 0:00:01.2]}
47. Bd3 {[%clk 0:00:25.5]} 47... Kd7 {[%clk 0:00:01.3]} 48. Ke2 {[%clk
0:00:24.9]} 48... Ba4 {[%clk 0:00:01.3]} 49. Nb8+ {[%clk 0:00:24.4]} 49... Kd8
{[%clk 0:00:01.3]} 50. Nc6+ {[%clk 0:00:17.1]} 50... Ke8 {[%clk 0:00:01]} 51.
Be4 {[%clk 0:00:17.5]} 1-0

[Event "Early-Titled-Tuesday-Blitz-February-06-2024"]
[Site "Chess.com"]
[Date "2024.02.06"]
[Round "4"]
[White "cthulhuuu"]
[Black "Russian_berezka"]
[Result "0-1"]
[WhiteElo "2391"]
[BlackElo "2577"]
[TimeControl "180+1"]
[EndTime "8:40:08 PST"]
[Termination "Russian_berezka won on time"]

1. e4 {[%clk 0:03:00.1]} 1... c5 {[%clk 0:03:00.1]} 2. Nf3 {[%clk 0:02:58.9]}
2... e6 {[%clk 0:03:00.8]} 3. d3 {[%clk 0:02:59.1]} 3... Nc6 {[%clk 0:03:00.3]}
4. g3 {[%clk 0:02:59.5]} 4... g6 {[%clk 0:03:00.7]} 5. Bg2 {[%clk 0:02:59.8]}
5... Bg7 {[%clk 0:03:01.3]} 6. O-O {[%clk 0:03:00.5]} 6... Nge7 {[%clk
0:02:59.9]} 7. Re1 {[%clk 0:03:00.6]} 7... d6 {[%clk 0:02:54.3]} 8. c3 {[%clk
0:03:00.5]} 8... e5 {[%clk 0:02:53.8]} 9. h3 {[%clk 0:02:59.5]} 9... O-O {[%clk
0:02:51.3]} 10. Be3 {[%clk 0:02:59.6]} 10... b6 {[%clk 0:02:48.1]} 11. d4 {[%clk
0:02:58.9]} 11... h6 {[%clk 0:02:25.4]} 12. Na3 {[%clk 0:02:53.2]} 12... Ba6
{[%clk 0:02:24.3]} 13. Qa4 {[%clk 0:02:50.4]} 13... Qc8 {[%clk 0:02:22.5]} 14.
Nb5 {[%clk 0:02:32]} 14... Rd8 {[%clk 0:01:49.5]} 15. Rad1 {[%clk 0:02:31.6]}
15... exd4 {[%clk 0:01:46.8]} 16. cxd4 {[%clk 0:02:30.9]} 16... cxd4 {[%clk
0:01:46.5]} 17. Nfxd4 {[%clk 0:02:30.8]} 17... Nxd4 {[%clk 0:01:46.4]} 18. Bxd4
{[%clk 0:02:31]} 18... Bxd4 {[%clk 0:01:29.5]} 19. Rxd4 {[%clk 0:02:29.9]} 19...
Bxb5 {[%clk 0:01:29.9]} 20. Qxb5 {[%clk 0:02:30.8]} 20... Qc5 {[%clk 0:01:30.6]}
21. Qd3 {[%clk 0:02:22.6]} 21... Nc6 {[%clk 0:01:29.2]} 22. Rd5 {[%clk 0:02:05]}
22... Nb4 {[%clk 0:01:28.7]} 23. Qd2 {[%clk 0:00:40]} 23... Nxd5 {[%clk
0:01:26.1]} 24. exd5 {[%clk 0:00:40.9]} 24... Re8 {[%clk 0:01:15.4]} 25. Rc1
{[%clk 0:00:40.5]} 25... Re2 {[%clk 0:01:13.5]} 26. Qxe2 {[%clk 0:00:31.6]}
26... Qxc1+ {[%clk 0:01:11.7]} 27. Kh2 {[%clk 0:00:32.5]} 27... Qg5 {[%clk
0:00:57]} 28. f4 {[%clk 0:00:27.6]} 28... Qf6 {[%clk 0:00:55.2]} 29. h4 {[%clk
0:00:22.8]} 29... Rc8 {[%clk 0:00:50.8]} 30. h5 {[%clk 0:00:20.5]} 30... gxh5
{[%clk 0:00:41.1]} 31. Qxh5 {[%clk 0:00:17.4]} 31... Rc2 {[%clk 0:00:38.8]} 32.
Kh3 {[%clk 0:00:15.9]} 32... Rxb2 {[%clk 0:00:30.4]} 33. Be4 {[%clk 0:00:15.5]}
33... Kf8 {[%clk 0:00:19.4]} 34. Qg4 {[%clk 0:00:14.4]} 34... Qc3 {[%clk
0:00:17.7]} 35. Qd7 {[%clk 0:00:09]} 35... Qc5 {[%clk 0:00:07.7]} 36. Qd8+
{[%clk 0:00:07.3]} 36... Kg7 {[%clk 0:00:07.7]} 37. f5 {[%clk 0:00:07.3]} 37...
Rf2 {[%clk 0:00:06.7]} 38. Kg4 {[%clk 0:00:01.8]} 38... Qd4 {[%clk 0:00:06.3]}
39. Qe7 {[%clk 0:00:02.2]} 39... Qe5 {[%clk 0:00:05.6]} 40. f6+ {[%clk
0:00:01.8]} 40... Rxf6 {[%clk 0:00:04.4]} 0-1